bitfinex-derivatives/quotes_BNBF0:USTF0_20250807
["timestamp","ask_amount","ask_price","bid_price","bid_amount"]
[1754556797084,0.87689201,766.98,766.42,1.203]
[1754556797285,0.87689201,766.93,766.42,1.203]
[1754556805095,0.87689201,766.92,766.42,1.203]
[1754556805294,0.87689201,766.93,766.42,1.203]
[1754556806998,0.87689201,766.89,766.42,1.203]
[1754556808000,0.87689201,766.89,766.34,0.87805727]
[1754556808711,0.87689201,766.9,766.34,0.87805727]
[1754556808995,1.1652202,767.03,766.34,0.87805727]
[1754556808996,0.87689201,766.89,766.34,0.87805727]
[1754556810302,0.87689201,766.88,766.35,0.87805727]
[1754556810500,0.87689201,766.88,766.34,0.87805727]
[1754556810697,0.87689201,766.88,766.35,0.87805727]
[1754556811198,0.87689201,766.88,766.36,1.216]
[1754556811401,0.87689201,766.89,766.36,1.216]
[1754556811697,0.87689201,766.88,766.36,1.216]
[1754556813403,0.87689201,766.89,766.36,1.216]
[1754556825420,0.87689201,766.98,766.36,1.216]
[1754556826413,0.87689201,766.97,766.36,1.216]
[1754556829316,0.87689201,767.07,766.36,1.216]
[1754556829911,0.87689201,767.02,766.36,1.216]
[1754556830215,0.87689201,766.92,766.36,1.216]
[1754556830611,0.87689201,766.91,766.36,1.216]
[1754556830816,0.87689201,766.84,766.36,1.216]
[1754556831016,0.87689201,766.83,766.36,1.216]
[1754556831217,0.87689201,766.88,766.36,1.216]
[1754556831622,4.0782708,768.51,766.36,1.216]
[1754556831623,0.87689201,766.76,766.36,1.216]
[1754556832215,0.87689201,766.73,766.36,1.216]
[1754556832422,0.87689201,766.58,766.36,1.216]
[1754556832920,0.87689201,766.61,766.36,1.216]
[1754556833214,0.87689201,766.6,766.36,1.216]
[1754556833420,0.87689201,766.63,766.36,1.216]
[1754556833716,0.87689201,766.57,766.36,1.216]
[1754556836121,0.22699477,766.91,766.36,1.216]
[1754556845621,0.4092036,789.33,743.44,0.915]
[1754556845823,0.4092036,789.32,743.44,0.915]
[1754556846021,0.4092036,789.31,743.44,0.915]
[1754556846222,0.4092036,789.3,743.44,0.915]
[1754556846423,0.4092036,789.29,743.44,0.915]
[1754556846621,0.4092036,789.28,743.44,0.915]
[1754556846821,0.4092036,789.27,743.44,0.915]
[1754556847029,0.4092036,789.26,743.44,0.915]
[1754556847226,0.4092036,789.25,743.44,0.915]
[1754556847428,0.4092036,789.24,743.44,0.915]
[1754556847625,0.4092036,789.23,743.44,0.915]
[1754556847826,0.4092036,789.22,743.44,0.915]
[1754556848123,0.4092036,789.21,743.44,0.915]
[1754556848323,0.4092036,789.2,743.44,0.915]
[1754556848526,0.4092036,789.19,743.44,0.915]
[1754556849023,0.4087562,789.41,743.44,0.915]
[1754556849222,0.4087562,789.4,743.44,0.915]
[1754556849422,0.4087562,789.39,743.44,0.915]
[1754556849623,0.4086946,789.38,743.44,0.915]
[1754556849823,0.4086946,789.37,743.44,0.915]
[1754556850023,0.4086946,789.36,743.44,0.915]
[1754556850323,0.4086946,789.35,743.44,0.915]
[1754556850523,0.4086946,789.34,743.44,0.915]
[1754556850726,0.4086946,789.33,743.44,0.915]
[1754556850938,0.4086946,789.32,743.44,0.915]
[1754556851122,0.4086946,789.31,743.44,0.915]
[1754556851324,0.4086946,789.3,743.44,0.915]
[1754556851533,0.4086946,789.29,743.44,0.915]
[1754556851822,0.4086946,789.28,743.44,0.915]
[1754556852023,0.4086946,789.27,743.44,0.915]
[1754556852227,0.4086946,789.26,743.44,0.915]
[1754556852525,0.4086946,789.25,743.44,0.915]
[1754556852723,0.4086946,789.24,743.44,0.915]
[1754556852927,0.4086946,789.23,743.44,0.915]
[1754556853224,0.4086946,789.22,743.44,0.915]
[1754556853524,0.4086946,789.21,743.44,0.915]
[1754556853724,0.4086946,789.2,743.44,0.915]
[1754556853924,0.4086946,789.19,743.44,0.915]
[1754556854131,0.4086946,789.18,743.44,0.915]
[1754556854325,0.4086946,789.17,743.44,0.915]
[1754556854623,0.4086946,789.16,743.44,0.915]
[1754556854828,0.4086946,789.15,743.44,0.915]
[1754556855126,0.4086946,789.14,743.44,0.915]
[1754556855325,0.4086946,789.13,743.44,0.915]
[1754556855526,0.4086946,789.12,743.44,0.915]
[1754556855728,0.8683688,765.95,764.52,0.8719333]
[1754556855929,0.8683688,765.93,764.5,0.8719333]
[1754556856130,0.8683688,766.89,765.46,0.8719333]
[1754556856333,0.4085192,766.88,765.46,0.8719333]
[1754556856528,0.4085192,766.87,765.46,0.8719333]
[1754556856729,0.4085192,766.86,765.46,0.8719333]
[1754556857028,0.4085192,766.85,765.47,0.8719333]
[1754556857232,0.4085192,766.84,765.47,0.8719333]
[1754556857432,0.4085192,766.83,765.46,0.8719333]
[1754556857629,0.4085192,766.82,765.46,0.8719333]
[1754556857935,0.4085192,766.82,765.25,1.162577]
[1754556857936,0.4085177,766.81,765.47,0.8719333]
[1754556858129,0.4085177,766.8,765.47,0.8719333]
[1754556858334,0.4085177,766.79,765.47,0.8719333]
[1754556858529,0.4085177,766.78,765.46,0.8719333]
[1754556858829,0.4085177,766.77,765.46,0.8719333]
[1754556859034,0.4085177,766.76,765.46,0.8719333]
[1754556859229,0.4085177,766.75,765.46,0.8719333]
[1754556859430,0.4085177,766.74,765.46,0.8719333]
[1754556859632,0.4085177,766.73,765.46,0.8719333]
[1754556859854,0.4085177,766.72,765.46,0.8719333]
[1754556860031,0.4085177,766.71,765.47,0.8717915]
[1754556860231,0.4085177,766.71,764.21,2.906444]
[1754556860232,0.4085177,766.7,765.44,0.8717915]
[1754556860535,0.8682856,766.91,765.44,0.8717915]
[1754556860833,0.4085475,766.9,765.44,0.8717915]
[1754556861035,0.4085475,766.89,765.44,0.8717915]
[1754556861232,0.4085475,766.88,765.44,0.8717915]
[1754556861441,0.4085475,766.87,765.44,0.8717915]
[1754556861736,0.4085475,766.86,765.44,0.8717915]
[1754556861937,0.4085475,766.85,765.44,0.8717915]
[1754556862238,0.4085475,766.84,765.44,0.8717915]
[1754556862433,0.4085475,766.83,765.44,0.8717915]
[1754556862734,0.4085475,766.82,765.45,0.8717915]
[1754556862937,0.4085475,766.81,765.45,0.8717915]
[1754556863134,0.4085475,766.8,765.45,0.8717915]
[1754556863334,0.4085475,766.79,765.45,0.8717915]
[1754556863539,0.4085475,766.78,765.45,0.8717915]
[1754556863735,0.4085475,766.77,765.45,0.8717915]
[1754556863936,0.4085475,766.76,765.45,0.8717915]
[1754556864136,0.4085475,766.75,765.45,0.8717915]
[1754556864337,0.4085475,766.74,765.45,0.8717915]
[1754556864540,0.4085475,766.73,765.45,0.8717915]
[1754556864840,0.4085475,766.72,765.45,0.8717915]
[1754556865144,0.4085475,766.71,765.48,0.8717915]
[1754556865343,0.4085475,766.7,765.48,0.8717915]
[1754556865543,0.4085475,766.69,765.48,0.8717915]
[1754556865837,0.8682856,766.89,765.47,0.8717915]
[1754556866037,0.4086481,766.88,765.46,0.8717915]
[1754556866243,0.4086481,766.87,765.46,0.8717915]
[1754556866540,0.4086481,766.86,765.46,0.8717915]
[1754556866742,0.4086755,766.85,765.46,0.8717915]
[1754556867035,0.4086755,766.84,765.46,0.8717915]
[1754556867243,0.4087042,766.83,765.45,0.8717915]
[1754556867540,0.4087042,766.82,765.45,0.8717915]
[1754556867740,0.4087042,766.81,765.45,0.8717915]
[1754556867944,0.4087042,766.8,765.45,0.8717915]
[1754556868139,0.4087042,766.79,765.45,0.8717915]
[1754556868341,0.4087042,766.78,765.46,0.8717915]
[1754556868538,0.4087042,766.77,765.46,0.8717915]
[1754556868736,0.4087042,766.76,765.46,0.8717915]
[1754556869037,0.4087042,766.75,765.46,0.8717915]
[1754556869242,0.4087042,766.74,765.46,0.8717915]
[1754556869443,0.4087042,766.73,765.46,0.8717915]
[1754556869646,0.4087042,766.72,765.46,0.8717915]
[1754556869846,0.4087042,766.71,765.46,0.8717915]
[1754556870042,0.4087042,766.7,765.46,0.8717915]
[1754556870244,0.4087042,766.69,765.48,0.8717915]
[1754556870445,0.4087042,766.68,765.48,0.8717915]
[1754556870641,0.4087042,766.67,765.48,0.8717915]
[1754556870839,0.8682856,766.86,765.48,0.8717915]
[1754556871039,0.4088642,766.85,765.48,0.8717915]
[1754556871339,0.4088642,766.84,765.48,0.8717915]
[1754556871539,0.4088642,766.83,765.48,0.8717915]
[1754556871839,0.4088642,766.82,765.48,0.8717915]
[1754556872042,0.4088642,766.81,765.47,1.7987915]
[1754556872242,0.4088642,766.8,765.47,1.7987915]
[1754556872439,0.4088642,766.79,765.49,0.8717915]
[1754556872644,0.4089724,766.78,765.51,0.8717915]
[1754556872939,0.8682856,766.86,765.49,0.8717915]
[1754556873154,0.8682856,766.96,765.59,0.8717915]
[1754556873347,0.4091489,766.95,765.69,0.8717915]
[1754556873644,0.4091489,766.94,765.69,0.8717915]
[1754556873837,0.4091489,766.93,765.69,0.8717915]
[1754556874042,0.4091489,766.92,765.69,0.8717915]
[1754556874240,0.4091489,766.91,765.69,0.8717915]
[1754556874443,0.4091489,766.9,765.7,0.8717915]
[1754556874643,0.4091489,766.89,765.7,0.8717915]
[1754556874939,0.4091489,766.88,765.7,0.8717915]
[1754556875243,0.4091489,766.87,765.7,0.8717915]
[1754556875441,0.4091489,766.86,765.71,0.8717915]
[1754556875740,0.4091489,766.85,765.71,0.8717915]
[1754556876039,0.4091489,766.85,765.47,0.927]
[1754556876040,0.4093111,766.84,765.73,0.8717915]
[1754556876243,0.4093111,766.83,765.73,0.8717915]
[1754556876540,0.8682856,766.98,765.73,0.8717915]
[1754556876743,0.4094,766.97,765.73,0.8717915]
[1754556876942,0.4094,766.96,765.73,0.8717915]
[1754556877137,2.894562,768.18,765.74,0.8717915]
[1754556877138,0.4094,766.95,765.74,0.8717915]
[1754556877444,0.4094,766.94,765.74,0.8717915]
[1754556877643,0.4094,766.93,765.74,0.8717915]
[1754556877843,0.4094,766.92,765.74,0.8717915]
[1754556878048,0.4094,766.91,765.74,0.8717915]
[1754556878250,0.4094,766.9,765.74,0.8717915]
[1754556878450,0.4094,766.89,765.75,0.8717915]
[1754556878645,0.4094,766.88,765.75,0.8717915]
[1754556878854,0.4094,766.87,765.75,0.8717915]
[1754556879049,0.4094,766.86,765.75,0.8717915]
[1754556879248,0.4094,766.85,765.75,0.8717915]
[1754556879548,0.4094,766.84,765.76,0.8717915]
[1754556879747,0.4094,766.83,765.76,0.8717915]
[1754556879943,0.4094,766.82,765.76,0.8717915]
[1754556880152,0.4094,766.81,765.76,0.8717915]
[1754556880445,0.4094,766.8,765.77,0.8717915]
[1754556880649,0.8682856,766.92,765.77,0.8717915]
[1754556880846,0.4098079,766.91,765.77,0.8717915]
[1754556881046,0.4098079,766.9,765.77,0.8717915]
[1754556881248,0.8682856,766.92,765.77,0.8717915]
[1754556881446,1.2782559,766.91,765.77,0.8717915]
[1754556881650,1.2782559,766.91,765.58,1.162577]
[1754556881651,0.4099703,766.9,765.78,0.8717915]
[1754556881946,0.4099703,766.89,765.77,0.8717915]
[1754556882146,0.4099703,766.88,765.77,0.8717915]
[1754556882347,0.4099703,766.87,765.79,0.8717915]
[1754556882852,0.8682856,766.85,765.81,0.8717915]
[1754556883049,0.4099703,766.84,765.81,0.8717915]
[1754556883253,0.4099703,766.84,765.8,0.8717915]
[1754556883454,0.4099703,766.83,765.81,0.8717915]
[1754556884350,1.2782559,766.83,765.82,0.8717915]
[1754556884551,0.4099703,766.82,765.82,0.8717915]
[1754556885050,0.4099703,766.81,765.82,0.8717915]
[1754556885255,0.4099703,766.8,765.82,0.8717915]
[1754556885450,0.4106493,766.79,765.83,0.8717915]
[1754556885651,0.4106493,766.78,765.83,0.8717915]
[1754556885956,0.4106493,766.77,765.83,0.8717915]
[1754556886151,0.4106493,766.76,765.83,0.8717915]
[1754556886356,0.4106493,766.75,765.84,0.8717915]
[1754556886555,0.4106493,766.74,765.84,0.8717915]
[1754556886858,0.4106493,766.73,765.84,0.8717915]
[1754556887058,0.8682856,766.8,765.84,0.8717915]
[1754556887254,0.4108316,766.79,765.84,0.8717915]
[1754556887459,1.2791172,766.78,765.85,0.8717915]
[1754556887662,0.4108316,766.77,765.85,0.8717915]
[1754556888153,0.4108316,766.77,765.86,0.8717915]
[1754556888555,0.8682856,766.76,765.87,0.8717915]
[1754556888856,2.894562,767.83,765.87,0.8717915]
[1754556888857,1.2791172,766.75,765.87,0.8717915]
[1754556889063,0.4108316,766.74,765.87,0.8717915]
[1754556889263,0.8682856,766.73,765.88,0.8717915]
[1754556889460,0.8682856,766.71,765.89,0.8717915]
[1754556889657,0.4108316,766.7,765.89,0.8717915]
[1754556890158,1.2791172,766.7,765.89,0.8717915]
[1754556890359,1.2791172,766.69,765.9,0.8717915]
[1754556890559,0.4108316,766.68,765.9,0.8717915]
[1754556890761,0.4108316,766.68,765.74,1.162577]
[1754556890762,0.8682856,766.67,765.91,0.8717915]
[1754556890965,0.4108316,766.66,765.91,0.8717915]
[1754556891465,0.4108316,766.65,765.92,0.8717915]
[1754556892160,0.8682856,766.64,765.9,0.8717915]
[1754556892462,0.4108316,766.63,765.9,0.8717915]
[1754556893166,0.8682856,766.66,765.83,0.8717915]
[1754556893463,0.8682856,766.63,765.8,0.8717915]
[1754556893663,0.4119028,766.62,765.8,0.8717915]
[1754556893866,0.4119028,766.61,765.8,0.8717915]
[1754556894064,0.4119028,766.6,765.8,0.8717915]
[1754556894263,0.4119028,766.59,765.8,0.8717915]
[1754556894467,0.4119391,766.58,765.8,0.8717915]
[1754556894667,0.8682856,766.63,765.8,0.8717915]
[1754556894875,0.4119466,766.62,765.8,0.8717915]
[1754556895066,0.4119466,766.61,765.81,0.8717915]
[1754556895968,0.8682856,766.62,765.81,0.8717915]
[1754556896164,0.4120249,766.61,765.81,0.8717915]
[1754556896368,0.4120249,766.6,765.81,0.8717915]
[1754556896563,0.4120249,766.59,765.81,0.8717915]
[1754556896764,0.4120249,766.58,765.81,0.8717915]
[1754556897065,0.8682856,766.62,765.81,0.8717915]
[1754556897268,0.4120509,766.61,765.81,0.8717915]
[1754556897465,0.8682856,766.62,765.81,0.8717915]
[1754556897466,0.4120509,766.6,765.81,0.8717915]
[1754556897666,0.4120509,766.59,765.81,0.8717915]
[1754556897969,0.4120509,766.59,765.47,0.927]
[1754556897970,0.4120509,766.58,765.8,0.8717915]
[1754556898166,0.8682856,766.62,765.81,0.8717915]
[1754556898466,0.4120798,766.61,765.81,0.8717915]
[1754556898669,0.4120798,766.6,765.81,0.8717915]
[1754556898868,0.4120798,766.59,765.81,0.8717915]
[1754556899065,0.4120798,766.58,765.81,0.8717915]
[1754556899268,0.8758872,766.62,765.81,0.8774996]
[1754556899473,0.4120944,766.61,765.81,0.8774996]
[1754556899770,0.4120944,766.6,765.81,0.8774996]
[1754556900069,0.4120944,766.59,765.81,0.8774996]
[1754556900270,0.4120944,766.58,765.81,0.8774996]
[1754556900565,0.8758872,766.62,765.81,0.8774996]
[1754556900770,0.4120944,766.61,765.81,0.8774996]
[1754556900972,0.4120944,766.6,765.81,0.8774996]
[1754556901270,0.8758872,766.54,765.65,0.8774996]
[1754556902674,0.4119706,766.53,765.65,0.8774996]
[1754556902972,0.4119706,766.52,765.65,0.8774996]
[1754556903169,0.4119706,766.51,765.65,0.8774996]
[1754556903374,0.4119706,766.5,765.65,0.8774996]
[1754556903673,0.4119706,766.49,765.65,0.8774996]
[1754556903870,0.8758872,766.54,765.65,0.8774996]
[1754556906670,0.8758872,766.55,765.65,0.8774996]
[1754556912276,0.8758872,766.55,765.66,1.197]
[1754556921683,0.8764835,766.65,765.66,2.367325]
[1754556921876,0.8764835,766.64,765.67,1.170325]
[1754556922384,0.8764835,766.64,765.86,0.8774996]
[1754556923879,2.920947,767.76,765.86,0.8774996]
[1754556923880,0.8764835,766.63,765.86,0.8774996]
[1754556924783,0.8764835,766.63,765.87,0.8774996]
[1754556925183,0.8764835,766.62,765.86,0.8774996]
[1754556925784,0.8764835,766.63,765.86,0.8774996]
[1754556927386,0.8764835,766.59,765.89,0.8774996]
[1754556929391,0.8764835,766.58,765.89,0.8774996]
[1754556929882,0.8764835,766.58,765.9,0.8774996]
[1754556930183,0.8764835,766.57,765.9,0.8774996]
[1754556931284,0.8764835,766.56,765.9,0.8774996]
[1754556931788,0.8764835,766.56,765.91,0.8774996]
[1754556932288,0.8764835,766.54,765.92,0.8774996]
[1754556934288,0.8764835,766.53,765.93,0.8774996]
[1754556934686,0.8764835,766.54,765.93,0.8774996]
[1754556935686,0.8764835,766.51,765.95,0.8774996]
[1754556937285,0.8764835,766.5,765.95,0.8774996]
[1754556937992,0.8764835,766.54,765.93,0.8774996]
[1754556939292,0.8764835,766.55,765.92,0.8774996]
[1754556944496,0.8764835,766.54,765.93,0.8774996]
[1754556947301,0.8764835,766.53,765.93,0.8774996]
[1754556948003,0.8764835,766.53,765.78,1.170325]
[1754556948004,0.8764835,766.51,765.95,0.8774996]
[1754556949201,0.8764835,766.49,765.96,0.8774996]
[1754556950308,0.8764835,766.48,765.96,0.8774996]
[1754556950607,0.8764835,766.52,765.94,0.8774996]
[1754556950808,0.8764835,766.48,765.89,0.8774996]
[1754556951205,0.8764835,766.47,765.89,0.8774996]
[1754556951705,0.8764835,766.49,765.88,0.8774996]
[1754556952109,0.8764835,766.49,765.87,0.8774996]
[1754556953507,0.8764835,766.5,765.87,0.8774996]
[1754556958211,0.8764835,766.5,765.86,0.8774996]
[1754556958410,0.8764835,766.47,765.88,0.8774996]
[1754556961713,0.8764835,766.46,765.89,0.8774996]
[1754556962213,0.8764835,766.45,765.9,0.8774996]
[1754556962419,0.8764835,766.45,765.89,0.8774996]
[1754556963016,0.8764835,766.44,765.9,0.8774996]
[1754556963312,0.8764835,766.43,765.91,0.8774996]
[1754556964217,0.8764835,766.42,765.92,0.8774996]
[1754556965313,0.8764835,766.41,765.92,0.8774996]
[1754556966218,0.8764835,766.42,765.92,0.8774996]
[1754556967315,0.8764835,766.41,765.93,0.8774996]
[1754556969219,0.8764835,766.41,765.94,1.207]
[1754556971124,0.8764835,766.42,765.94,1.207]
[1754556971422,0.8764835,766.48,765.94,1.207]
[1754556980532,0.8764835,766.49,765.94,1.207]
[1754556981230,0.8764835,766.46,765.94,1.207]
[1754556981433,0.8764835,766.45,765.94,1.207]
[1754556981928,0.8764835,766.6,765.94,1.207]
[1754556982330,0.8764835,766.52,765.94,1.207]
[1754556982529,0.8764835,766.51,765.94,1.207]
[1754556983233,0.8764835,766.52,765.94,1.207]
[1754556984935,0.8764835,766.5,765.94,1.207]
[1754556985134,0.8764835,766.51,765.94,1.207]
[1754556985338,0.8772439,766.5,765.94,1.207]
[1754556986235,0.8772439,766.51,765.94,1.207]
[1754556986739,0.8772439,766.49,765.94,1.207]
[1754556987940,0.8772439,766.48,765.94,1.207]
[1754556991239,1.752967,766.92,765.94,1.207]
[1754556991240,0.8772439,766.49,765.94,1.207]
[1754556991538,0.8772439,766.47,765.94,1.207]
[1754556991740,0.8772439,766.44,765.94,1.207]
[1754556992039,0.8772439,766.37,765.94,1.207]
[1754556992240,0.8772439,766.38,765.94,1.207]
[1754556993043,0.8772439,766.36,765.94,1.207]
[1754556993946,0.8772439,766.32,765.94,1.207]
[1754556994141,0.4131786,766.31,765.94,1.207]
[1754556994445,0.4131786,766.3,765.94,1.207]
[1754556994644,0.8772439,766.33,765.94,1.207]
[1754556994840,0.4131103,766.32,765.94,1.207]
[1754556995039,0.4131103,766.31,765.94,1.207]
[1754556995241,0.4131103,766.3,765.94,1.207]
[1754556995445,0.4131103,766.29,765.94,1.207]
[1754556995739,0.8772439,766.32,765.94,1.207]
[1754556995941,0.4130242,766.31,765.94,1.207]
[1754556996142,0.4130242,766.3,765.94,1.207]
[1754556996446,0.4130242,766.29,765.66,0.8794563]
[1754556996640,0.8772439,766.33,765.66,0.8794563]
[1754556996842,0.4129652,766.32,765.66,0.8794563]
[1754556997043,0.4129652,766.31,765.66,0.8794563]
[1754556997241,0.4129652,766.3,765.65,0.8794563]
[1754556997546,0.8772439,766.34,765.65,0.8794563]
[1754556997747,0.4129102,766.33,765.65,0.8794563]
[1754556998042,0.4129102,766.32,765.65,0.8794563]
[1754556998247,0.8772439,766.34,765.65,0.8794563]
[1754556998449,0.4128617,766.33,765.65,0.8794563]
[1754556998748,0.4128617,766.32,765.65,0.8794563]
[1754556998947,0.4128617,766.31,765.65,0.8794563]
[1754556999145,0.4128617,766.3,765.65,0.8794563]
[1754556999345,0.8772439,766.34,765.65,0.8794563]
[1754556999544,0.4128189,766.33,765.66,0.8794563]
[1754556999745,1.2900628,766.32,765.66,2.1474563]
[1754556999945,0.4128189,766.31,765.66,2.1474563]
[1754557000143,0.4128189,766.3,765.66,2.1474563]
[1754557000350,0.8772439,766.32,765.66,2.1474563]
[1754557000548,0.41277759,766.31,765.66,2.1474563]
[1754557000845,0.41277759,766.3,765.66,2.1474563]
[1754557001045,0.8772439,766.32,765.66,2.1474563]
[1754557001244,0.41277965,766.31,765.66,1.268]
[1754557001451,0.41277965,766.3,765.66,1.268]
[1754557001746,0.8772439,766.33,765.66,1.268]
[1754557001948,0.4127446,766.32,765.66,1.268]
[1754557002150,0.4127446,766.31,765.66,1.268]
[1754557002348,0.8772439,766.33,765.66,1.268]
[1754557002552,0.412716,766.32,765.66,1.268]
[1754557002748,0.412716,766.31,765.66,1.268]
[1754557002950,0.412716,766.3,765.66,2.1474563]
[1754557003248,0.8772439,766.32,765.66,2.1474563]
[1754557003552,0.41269154,766.31,765.66,2.1474563]
[1754557003747,0.41269154,766.3,765.66,2.1474563]
[1754557003948,0.8772439,766.32,765.66,2.1474563]
[1754557004153,0.41269593,766.31,765.66,2.1474563]
[1754557004453,0.8772439,766.32,765.66,2.1474563]
[1754557004748,0.4126399,766.31,765.66,2.1474563]
[1754557004953,0.8772439,766.32,765.66,2.1474563]
[1754557005153,0.4126398,766.31,765.66,2.1474563]
[1754557005354,0.41261503,766.3,765.66,2.1474563]
[1754557005556,0.8772439,766.31,765.66,2.1474563]
[1754557005759,0.41261522,766.3,765.66,2.1474563]
[1754557005956,0.8772439,766.31,765.66,2.1474563]
[1754557006258,1.28986287,766.3,765.67,0.8794563]
[1754557006458,0.8772439,766.3,765.67,0.8794563]
[1754557007359,0.8772439,766.29,765.67,0.8794563]
[1754557009263,0.8772439,766.3,765.67,0.8794563]
[1754557010558,0.8772439,766.29,765.67,0.8794563]
[1754557011163,0.8772439,766.3,765.67,0.8794563]
[1754557017468,0.8772439,766.33,765.66,1.268]
[1754557017671,0.4125231,766.32,765.66,1.268]
[1754557017871,0.8772439,766.33,765.66,1.268]
[1754557018168,0.4125231,766.32,765.66,1.268]
[1754557018368,0.8772439,766.34,765.66,1.268]
[1754557018573,0.4125258,766.33,765.66,1.268]
[1754557018772,0.4125258,766.32,765.66,1.268]
[1754557018969,0.8772439,766.34,765.66,1.268]
[1754557019170,1.2897771,766.33,765.66,1.268]
[1754557019373,0.4125332,766.32,765.66,1.268]
[1754557020274,0.8772439,766.34,765.66,1.268]
[1754557020474,0.412538,766.33,765.66,1.268]
[1754557020671,0.412538,766.32,765.66,1.268]
[1754557020868,0.8772439,766.34,765.66,1.268]
[1754557021071,0.4125346,766.33,765.66,1.268]
[1754557021369,0.4125346,766.32,765.66,1.268]
[1754557021573,0.8772439,766.34,765.66,1.268]
[1754557021769,0.4125384,766.33,765.66,1.268]
[1754557021972,0.4125384,766.32,765.66,1.268]
[1754557022173,0.8772439,766.34,765.66,1.268]
[1754557022472,0.4125074,766.33,765.66,1.268]
[1754557022669,0.4125074,766.32,765.66,1.268]
[1754557022869,0.8772439,766.34,765.66,1.268]
[1754557023169,0.4125179,766.33,765.66,1.268]
[1754557023374,0.4125179,766.32,765.66,1.268]
[1754557023669,0.8772439,766.34,765.66,1.268]
[1754557023873,1.2897677,766.33,765.66,1.268]
[1754557024075,0.4125238,766.32,765.66,1.268]
[1754557024270,0.8755157,766.33,765.66,1.268]
[1754557024473,0.4125767,766.32,765.66,1.268]
[1754557024674,0.8755157,766.33,765.66,1.268]
[1754557024975,0.4125804,766.32,765.66,1.268]
[1754557025172,0.8755157,766.33,765.66,1.268]
[1754557025372,0.4125907,766.32,765.66,1.268]
[1754557025674,0.8755157,766.33,765.66,1.268]
[1754557025872,0.412587,766.32,765.66,1.268]
[1754557026073,0.8755157,766.33,765.66,1.268]
[1754557026273,0.4125899,766.32,765.66,1.268]
[1754557026478,0.8755157,766.33,765.66,1.268]
[1754557026677,0.4125993,766.32,765.66,1.268]
[1754557026874,0.8755157,766.33,765.66,1.268]
[1754557027172,0.4126013,766.32,765.66,1.268]
[1754557027374,0.8755157,766.35,765.66,1.268]
[1754557027579,0.4126161,766.34,765.66,1.268]
[1754557027774,0.4126161,766.33,765.66,1.268]
[1754557027975,0.4126161,766.32,765.66,1.268]
[1754557028179,0.8755157,766.34,765.66,1.268]
[1754557028478,0.4126199,766.33,765.66,1.268]
[1754557028776,0.4126199,766.32,765.66,1.268]
[1754557028976,0.8755157,766.34,765.66,1.268]
[1754557029175,1.2881558,766.33,765.66,1.268]
[1754557029380,0.8755157,766.33,765.66,1.268]
[1754557029880,0.8755157,766.33,765.66,2.1461534]
[1754557030177,0.8755157,766.32,765.66,2.1461534]
[1754557031077,0.8755157,766.35,765.68,0.8781534]
[1754557031279,1.2882227,766.34,765.68,0.8781534]
[1754557031581,0.412707,766.33,765.68,0.8781534]
[1754557032077,0.412707,766.33,765.68,0.8784914]
[1754557032281,0.412707,766.33,765.66,1.268]
[1754557032282,0.412707,766.33,765.69,0.8784914]
[1754557033182,1.2887986,766.33,765.69,0.8784914]
[1754557033478,0.412707,766.32,765.69,0.8784914]
[1754557033677,0.8760916,766.33,765.66,1.268]
[1754557033878,0.8760916,766.41,765.66,1.268]
[1754557034079,0.4128661,766.4,765.66,1.268]
[1754557034277,0.4128661,766.39,765.66,1.268]
[1754557036188,0.8760916,766.36,765.66,1.268]
[1754557036491,0.4128661,766.35,765.66,1.268]
[1754557036888,0.4128661,766.34,765.66,1.268]
[1754557037093,0.4128661,766.33,765.66,1.268]
[1754557037293,0.8760916,766.43,765.66,1.268]
[1754557037492,0.4129743,766.42,765.66,1.268]
[1754557037789,0.4129743,766.41,765.66,1.268]
[1754557037989,0.4129743,766.4,765.66,1.268]
[1754557038190,0.4129743,766.39,765.66,1.268]
[1754557038390,0.4129743,766.38,765.66,1.268]
[1754557038591,0.8760916,766.42,765.66,1.268]
[1754557038790,0.41302381,766.41,765.66,1.268]
[1754557038992,0.41302381,766.4,765.66,1.268]
[1754557039289,0.41302381,766.39,765.66,1.268]
[1754557039494,0.41302381,766.38,765.66,1.268]
[1754557039695,0.41302381,766.37,765.66,1.268]
[1754557039896,0.41302381,766.36,765.66,1.268]
[1754557040093,0.41302381,766.35,765.66,1.268]
[1754557040298,0.41302381,766.34,765.66,1.268]
[1754557040492,0.41302381,766.33,765.66,1.268]
[1754557040691,0.8760916,766.43,765.66,1.268]
[1754557040893,0.41311876,766.42,765.66,1.268]